bitfinex/quotes_SOLUSD_20240703
["timestamp","ask_amount","ask_price","bid_price","bid_amount"]
[1720028928958,7.0607,141.63,141.58,24.8903]
[1720028929149,1.40961668,141.66,141.59,7.0624]
[1720028929360,7.0602,141.64,141.59,7.0624]
[1720028929562,1.40961668,141.67,141.59,21.22]
[1720028929854,6.56649354,141.68,141.62,17.6526]
[1720028930073,7.0586,141.68,141.63,7.0605]
[1720028930562,7.0587,141.67,141.63,7.0605]
[1720028930748,7.0587,141.67,141.62,17.6526]
[1720028930950,7.0591,141.66,141.62,17.6526]
[1720028931466,1.40961668,141.65,141.59,17.656]
[1720028931671,7.0599,141.65,141.59,17.656]
[1720028931837,8.46861668,141.67,141.62,7.0608]
[1720028932770,7.058,141.69,141.64,7.0598]
[1720028933068,7.0573,141.7,141.65,7.0596]
[1720028933241,7.0577,141.69,141.65,7.0596]
[1720028933441,7.0573,141.7,141.65,7.0596]
[1720028933648,7.0573,141.7,141.65,17.6488]
[1720028933865,7.0568,141.71,141.65,17.6488]
[1720028934051,1.40961668,141.72,141.65,17.6488]
[1720028934249,19.05031668,141.72,141.64,21.7546]
[1720028934455,7.0583,141.68,141.64,21.7546]
[1720028934762,7.0578,141.69,141.65,7.0595]
[1720028934956,7.0573,141.7,141.65,7.0595]
[1720028935266,7.0576,141.69,141.65,7.0595]
[1720028935441,7.0582,141.68,141.64,21.7546]
[1720028936566,7.0587,141.67,141.64,6.562]
[1720028936744,7.0587,141.67,141.63,7.0604]
[1720028937159,7.0587,141.67,141.61,59.0944]
[1720028937363,7.0583,141.68,141.64,7.06]
[1720028938268,7.0583,141.68,141.63,24.7119]
[1720028938651,7.0576,141.69,141.63,17.6513]
[1720028938978,7.0576,141.69,141.64,7.2297]
[1720028939164,1.40961668,141.68,141.6,17.6548]
[1720028939341,7.0609,141.63,141.58,7.0629]
[1720028939547,7.0609,141.63,141.57,17.6581]
[1720028939548,7.0602,141.64,141.59,7.0625]
[1720028939764,26.88,141.63,141.6,7.062]
[1720028939952,26.88,141.63,141.59,17.6562]
[1720028940161,26.88,141.63,141.6,7.0619]
[1720028940361,26.88,141.63,141.59,17.6562]
[1720028940761,26.88,141.63,141.61,7.0615]
[1720028941277,26.88,141.63,141.59,38.8762]
[1720028941467,26.88,141.65,141.59,21.22]
[1720028941645,26.88,141.65,141.62,7.061]
[1720028941845,8.46861668,141.67,141.62,7.061]
[1720028942139,27.0592,141.66,141.61,24.715]
[1720028943149,7.0598,141.65,141.61,17.6536]
[1720028943337,7.0601,141.64,141.61,17.6536]
[1720028943542,7.0596,141.65,141.61,17.6536]
[1720028943768,1.40961668,141.68,141.61,17.6536]
[1720028943975,17.6412,141.72,141.63,38.8707]
[1720028944148,22.1924,141.74,141.66,7.059]
[1720028944149,7.0572,141.7,141.66,7.059]
[1720028944367,7.0576,141.69,141.65,24.7085]
[1720028944692,15.03321022,141.71,141.66,7.059]
[1720028944858,7.97611022,141.71,141.66,7.059]
[1720028945054,7.0572,141.7,141.65,24.7084]
[1720028945285,7.0572,141.7,141.66,0.17]
[1720028945461,7.0568,141.71,141.66,0.34]
[1720028945775,7.0568,141.71,141.66,1.73937386]
[1720028945963,8.46551668,141.73,141.68,7.058]
[1720028946168,7.0562,141.72,141.69,1.39907818]
[1720028946889,1.40961668,141.74,141.69,1.39907818]
[1720028947088,7.0561,141.73,141.69,8.45667818]
[1720028947287,7.0561,141.73,141.7,0.34]
[1720028947660,7.0561,141.72,141.7,0.34]
[1720028947890,7.0561,141.72,141.69,0.34]
[1720028948381,7.0558,141.73,141.69,0.34]
[1720028948564,7.0558,141.73,141.69,7.3976]
[1720028948761,1.40961668,141.75,141.69,7.3976]
[1720028948762,6.56649354,141.76,141.7,21.22]
[1720028948967,7.0538,141.77,141.72,7.056]
[1720028949390,1.40961668,141.78,141.71,17.9813]
[1720028949763,7.0544,141.76,141.71,25.0378]
[1720028950159,7.0544,141.76,141.72,7.0561]
[1720028950388,7.0538,141.77,141.72,7.0561]
[1720028950562,17.6324,141.79,141.71,0.34]
[1720028950563,1.40961668,141.76,141.71,0.34]
[1720028950771,7.0548,141.75,141.71,0.17]
[1720028951074,7.0543,141.76,141.71,7.2266]
[1720028951589,7.0557,141.73,141.67,38.8658]
[1720028951970,30.23,141.78,141.73,7.0556]
[1720028952295,12.66989354,141.81,141.74,7.0551]
[1720028952296,20.0,141.77,141.74,7.0551]
[1720028952472,1.40961668,141.8,141.73,17.6389]
[1720028952798,7.0527,141.79,141.74,7.225]
[1720028952970,28.46311668,141.78,141.73,24.6942]
[1720028953287,7.0537,141.77,141.73,17.6389]
[1720028953698,7.0537,141.77,141.73,24.6944]
[1720028953993,20.0,141.78,141.74,7.0551]
[1720028954300,8.46191668,141.8,141.76,7.0541]
[1720028954464,7.0523,141.8,141.76,7.0541]
[1720028954976,13.61829354,141.81,141.76,7.0541]
[1720028955386,7.0518,141.81,141.76,7.0541]
[1720028955574,7.0512,141.82,141.77,24.6874]
[1720028956090,7.0523,141.8,141.75,7.3943]
[1720028956391,7.0523,141.8,141.75,0.34]
[1720028956696,27.0518,141.81,141.77,7.0534]
[1720028956895,27.0518,141.81,141.76,24.6887]
[1720028957184,27.0518,141.81,141.77,0.34]
[1720028958094,27.0518,141.81,141.77,7.3935]
[1720028958393,20.0,141.81,141.78,17.6328]
[1720028958567,7.97611022,141.85,141.79,0.17]
[1720028958767,20.0,141.84,141.79,0.17]
[1720028958987,20.0,141.84,141.79,0.34]
[1720028959194,7.0507,141.83,141.79,7.3925]
[1720028959694,7.0498,141.85,141.81,7.0516]
[1720028959905,7.0494,141.86,141.81,7.0516]
[1720028960276,7.0494,141.86,141.82,7.0511]
[1720028960502,7.0494,141.86,141.81,7.0514]
[1720028960808,7.0497,141.85,141.8,24.6821]
[1720028960972,1.40961668,141.84,141.79,0.34]
[1720028961167,1.40961668,141.84,141.77,17.6331]
[1720028961168,7.052,141.81,141.77,17.6331]
[1720028961364,7.0526,141.79,141.75,28.6358]
[1720028961564,1.40961668,141.83,141.75,21.5814]
[1720028961789,6.5545,141.84,141.76,7.0537]
[1720028961790,33.8717,141.81,141.76,7.0537]
[1720028961999,33.8717,141.81,141.77,7.0536]
[1720028963101,33.8717,141.81,141.76,24.6891]
[1720028963392,7.0536,141.78,141.73,17.6382]
[1720028963596,7.0536,141.78,141.73,24.6937]
[1720028963984,7.0528,141.79,141.74,7.055]
[1720028964397,7.0528,141.79,141.75,7.0546]
[1720028964806,1.40961668,141.82,141.76,17.6351]
[1720028965105,30.18,141.83,141.76,17.6351]
[1720028965273,20.0,141.82,141.79,7.0526]
[1720028965474,7.0506,141.83,141.79,7.0526]
[1720028965681,8.46021668,141.83,141.79,7.0526]
[1720028966093,8.46021668,141.83,141.78,24.6856]
[1720028967704,7.0506,141.83,141.79,7.0525]
[1720028968006,6.56649354,141.84,141.8,17.63]
[1720028968184,1.40961668,141.87,141.8,17.63]
[1720028968391,7.0493,141.86,141.81,7.3913]
[1720028969704,20.0,141.85,141.81,7.3913]
[1720028970391,20.0,141.85,141.82,7.0509]
[1720028970574,7.0493,141.86,141.82,7.0509]
[1720028971180,1.40961668,141.88,141.82,17.6276]
[1720028971380,13.61449354,141.89,141.84,7.05]
[1720028971572,13.61449354,141.89,141.85,0.7490409]
[1720028972304,13.61449354,141.89,141.84,24.6752]
[1720028972472,8.45781668,141.88,141.84,17.6252]
[1720028972896,7.0488,141.87,141.81,17.798]
[1720028973078,7.0488,141.87,141.82,0.17]
[1720028974318,7.0488,141.87,141.83,7.0505]
[1720028974621,8.45881668,141.86,141.82,0.17]
[1720028974831,8.45881668,141.86,141.82,7.051]
[1720028974994,7.0492,141.86,141.82,7.051]
[1720028975319,7.0488,141.87,141.82,7.051]
[1720028975535,1.40961668,141.86,141.82,7.051]
[1720028975703,8.45881668,141.86,141.82,7.051]
[1720028975901,7.0492,141.86,141.82,7.051]
[1720028976103,1.40961668,141.88,141.82,7.051]
[1720028976918,19.03021668,141.88,141.81,17.628]
[1720028977132,7.0499,141.85,141.8,7.052]
[1720028977297,8.45981668,141.84,141.8,7.052]
[1720028977631,1.40961668,141.83,141.8,7.052]
[1720028977797,7.0497,141.85,141.81,7.0516]
[1720028978309,1.40961668,141.86,141.82,17.6276]
[1720028978502,20.0,141.86,141.83,7.0503]
[1720028978696,21.40961668,141.87,141.83,7.0503]
[1720028979329,28.45841668,141.87,141.82,24.6785]
[1720028979538,7.0492,141.86,141.82,24.6785]
[1720028980759,1.40961668,141.85,141.8,7.0518]
[1720028981122,8.45941668,141.85,141.81,7.0514]
[1720028981322,7.0493,141.86,141.82,7.051]
[1720028981535,1.40961668,141.86,141.78,43.9771]
[1720028981735,1.40961668,141.86,141.82,17.6276]
[1720028981935,8.45941668,141.85,141.82,17.6276]
[1720028982140,7.0494,141.86,141.82,17.6276]
[1720028982340,1.40961668,141.85,141.82,17.6276]
[1720028984252,33.8494,141.86,141.82,24.6786]
[1720028986836,33.8494,141.86,141.82,17.6276]
[1720028987044,1.40961668,141.85,141.8,7.0521]
[1720028987341,8.45941668,141.85,141.81,7.0515]
[1720028988753,8.45941668,141.85,141.8,7.0521]
[1720028988754,7.0502,141.84,141.8,7.0521]
[1720028989553,1.40961668,141.85,141.81,17.6289]
[1720028989753,1.40961668,141.85,141.82,7.0511]
[1720028990051,8.45931668,141.85,141.81,24.6805]
[1720028990958,1.40961668,141.85,141.81,24.6805]
[1720028992069,26.8,141.83,141.78,17.6317]
[1720028992239,33.8517,141.81,141.77,7.0535]
[1720028992967,26.8,141.81,141.77,7.0535]
[1720028993449,33.8517,141.81,141.77,7.0535]
[1720028993960,26.8,141.81,141.77,7.0535]
[1720028994267,26.8,141.81,141.78,7.0531]
[1720028995166,26.8,141.83,141.79,17.6315]
[1720028995346,26.8,141.83,141.8,7.0518]
[1720028995555,26.8,141.83,141.79,24.684]
[1720028996264,26.8,141.83,141.8,7.0519]
[1720028996469,26.8,141.83,141.79,24.684]
[1720028997455,1.40961668,141.82,141.79,17.6315]
[1720028997767,28.20961668,141.83,141.79,24.684]
[1720028998258,26.8,141.83,141.8,7.0519]
[1720028998458,26.8,141.83,141.81,7.0516]
[1720028998651,26.8,141.83,141.8,7.052]
[1720028999346,56.6099,141.85,141.81,7.0515]
[1720028999548,26.8,141.85,141.81,7.0515]
[1720028999747,26.8,141.85,141.82,7.0511]
[1720029000164,33.8488,141.87,141.83,7.0505]
[1720029000366,26.8,141.87,141.84,7.0499]
[1720029000677,13.61449354,141.89,141.85,17.6236]
[1720029000970,15.02411022,141.89,141.85,17.6236]
[1720029001343,13.61449354,141.89,141.85,24.6731]
[1720029001757,13.61449354,141.89,141.82,17.6273]
[1720029001758,26.8,141.87,141.82,17.6273]
[1720029001967,8.45921668,141.86,141.82,17.6273]
[1720029002272,7.0502,141.84,141.8,7.052]
[1720029002448,26.8,141.85,141.79,17.8006]
[1720029002648,26.8,141.85,141.81,24.6803]
[1720029003346,33.8497,141.85,141.81,24.6803]
[1720029003862,7.0502,141.84,141.8,0.34]
[1720029004455,7.0502,141.84,141.8,0.17]
[1720029004762,8.45981668,141.84,141.79,7.0525]
[1720029004959,26.8,141.83,141.78,17.6317]
[1720029005176,26.8,141.83,141.79,7.0526]
[1720029005772,33.8509,141.83,141.79,7.0526]
[1720029005965,33.8509,141.83,141.78,24.6847]
[1720029006166,26.8,141.83,141.8,17.6302]
[1720029006562,26.8,141.83,141.81,7.0516]
[1720029006875,26.8,141.83,141.8,17.6302]
[1720029007370,43.41521668,141.9,141.82,21.22]
[1720029007573,43.41521668,141.9,141.83,0.34]
[1720029007766,7.0478,141.89,141.85,7.0494]
[1720029007965,50.46261668,141.9,141.85,7.0494]
[1720029008175,7.53471668,141.92,141.87,7.0486]
[1720029008378,6.1251,141.92,141.86,17.9627]
[1720029008575,6.1251,141.92,141.87,7.2186]
[1720029008576,13.1717,141.92,141.87,7.2186]
[1720029009371,7.0469,141.91,141.87,0.17]
[1720029010072,7.53471668,141.92,141.86,0.17]
[1720029010274,7.0477,141.89,141.84,7.05]
[1720029010593,26.8,141.89,141.85,7.0493]
[1720029011373,28.20961668,141.89,141.84,7.0501]
[1720029011581,26.8,141.89,141.84,7.0501]
[1720029012176,26.8,141.89,141.85,7.0494]
[1720029012385,33.8477,141.89,141.85,7.2194]
[1720029012669,33.8477,141.89,141.85,7.0494]
[1720029012869,33.8477,141.89,141.83,17.6256]
[1720029012870,1.40961668,141.88,141.83,17.6256]
[1720029013197,27.0483,141.88,141.83,17.6256]
[1720029013369,27.0483,141.88,141.83,24.6761]
[1720029013567,7.0487,141.87,141.83,24.6761]
[1720029013881,7.0492,141.86,141.82,7.0511]
[1720029014575,53.8482,141.88,141.83,7.0502]
[1720029014772,100.0,141.97,141.8,21.22]
[1720029014773,5.78520339,141.98,141.96,7.0437]
[1720029014981,22.0162,142.01,141.97,7.0433]
[1720029015199,22.0162,142.01,141.95,38.8306]
[1720029015500,7.8901404,142.02,141.97,24.6514]
[1720029015676,28.20961668,142.01,141.94,17.6128]
[1720029015880,2.25845708,142.02,141.95,0.17]
[1720029016079,9.29975708,142.02,141.97,7.0437]
[1720029016801,9.29975708,142.02,141.98,7.0431]
[1720029017175,0.8488404,142.02,141.99,7.0424]
[1720029017375,0.8488404,142.02,141.99,0.17]
[1720029017600,0.8488404,142.02,141.98,24.8203]
[1720029017802,7.8901404,142.02,141.98,24.6503]
[1720029017978,0.8488404,142.02,141.95,17.6111]
[1720029018183,7.0432,141.98,141.94,0.34]
[1720029018376,7.0432,141.98,141.95,0.34]
[1720029018570,0.8488404,142.02,141.95,0.17]
[1720029018775,7.0428,141.99,141.95,0.34]
[1720029019287,7.0428,141.99,141.95,0.17]
[1720029019681,7.0423,142.0,141.95,7.0446]
[1720029019885,1.40961668,141.99,141.95,7.0446]
[1720029021717,7.0418,142.01,141.96,7.214]
[1720029022204,20.0,142.0,141.97,7.0437]
[1720029022583,7.0417,142.01,141.97,7.0437]
[1720029022785,27.0417,142.01,141.97,7.0437]
[1720029023316,27.0417,142.01,141.96,24.9942]
[1720029023604,7.8902404,142.02,141.97,7.2134]
[1720029023802,7.0417,142.01,141.97,7.2134]
[1720029024208,0.8488404,142.02,141.98,7.213]
[1720029024380,0.8488404,142.02,141.99,0.17]
[1720029025012,20.8488404,142.02,141.99,0.17]
[1720029025596,22.25845708,142.02,141.98,0.17]
[1720029025792,7.0421,142.01,141.98,0.34]
[1720029025986,7.8902404,142.02,141.98,0.34]
[1720029026311,7.8902404,142.02,141.98,7.3832]
[1720029026700,0.8488404,142.02,141.98,7.3832]
[1720029026887,7.8903404,142.02,141.98,0.34]
[1720029027091,7.0418,142.01,141.98,0.34]
[1720029029610,7.8902404,142.02,141.98,0.34]
[1720029029913,0.8488404,142.02,141.98,7.3828]
[1720029030491,20.8488404,142.02,141.98,7.3828]
[1720029030691,20.8488404,142.02,141.99,7.41113666]
[1720029030887,20.8488404,142.02,142.0,0.34]
[1720029031089,0.8488404,142.02,142.0,7.87395026]
[1720029031398,0.8488404,142.02,142.0,0.83185026]
[1720029032012,0.8488404,142.02,142.0,1.74821049]
[1720029032608,0.8488404,142.02,142.0,8.79031049]
[1720029033506,0.8488404,142.02,142.01,7.0417]
[1720029033694,0.8488404,142.02,142.01,7.3817]
[1720029034501,0.8488404,142.02,142.01,28.6017]
[1720029035020,0.8488404,142.02,142.01,7.3817]
[1720029035312,0.8488404,142.02,142.01,28.6017]
[1720029035511,0.8488404,142.02,142.01,7.3817]
[1720029036214,0.8488404,142.02,142.01,28.6017]
[1720029038217,0.8488404,142.02,142.01,30.00952719]
[1720029040611,0.8488404,142.02,142.01,28.6017]
[1720029042422,0.8488404,142.02,142.01,7.0417]
[1720029042800,0.8488404,142.02,141.97,17.6083]
[1720029043011,7.0418,142.01,141.97,24.6519]
[1720029043298,0.8488404,142.02,141.99,7.0424]
[1720029043905,0.8488404,142.02,141.97,17.6083]
[1720029044314,0.8488404,142.02,141.98,0.17]
[1720029044910,0.8488404,142.02,141.98,7.2128]
[1720029045498,0.8488404,142.02,141.99,17.7767]
[1720029045713,7.8900404,142.02,141.99,0.17]
[1720029046123,7.0419,142.01,141.99,0.17]
[1720029046423,7.0422,142.0,141.96,24.6532]
[1720029046795,7.0428,141.99,141.96,17.6094]
[1720029047002,0.8488404,142.02,141.96,17.6094]
[1720029047315,0.8488404,142.02,141.96,24.6533]
[1720029047515,7.0421,142.01,141.96,24.6533]
[1720029048224,7.0421,142.01,141.97,0.17]
[1720029048533,28.11961668,142.0,141.93,17.6132]
[1720029048695,15.5261,141.99,141.93,17.6132]
[1720029048895,43.97851668,141.99,141.93,17.6132]
[1720029049108,43.97851668,141.99,141.94,1.40875745]
[1720029049324,43.97851668,141.99,141.95,7.0444]
[1720029049526,36.93571668,141.99,141.96,7.0441]
[1720029050224,20.0,141.99,141.97,7.0437]
[1720029050395,20.0,141.99,141.96,0.17]
[1720029050598,21.40961668,141.99,141.96,0.17]
[1720029051027,20.0,141.99,141.96,7.3839]
[1720029051401,20.0,141.99,141.96,0.34]
[1720029051805,0.8488404,142.02,142.01,7.0417]
[1720029052231,0.8488404,142.02,142.01,0.34]
[1720029052532,0.8488404,142.02,141.97,21.22]
[1720029052533,7.8904404,142.02,141.97,7.0435]
[1720029052726,0.8488404,142.02,141.98,7.3829]
[1720029053302,0.8488404,142.02,141.99,7.0427]
[1720029057016,0.8488404,142.02,141.98,24.991]
[1720029057017,7.8900404,142.02,141.98,24.991]
[1720029057905,0.8488404,142.02,141.99,7.0424]
[1720029058107,0.8488404,142.02,142.0,0.34]
[1720029058531,7.8900404,142.02,142.0,0.17]
[1720029058711,7.8900404,142.02,141.99,0.34]
[1720029059032,9.29965708,142.02,141.99,0.34]
[1720029059614,7.0425,142.0,141.96,7.044]
[1720029060226,7.0428,141.99,141.95,17.6108]
[1720029061136,7.0428,141.99,141.95,24.6552]
[1720029061309,7.0428,141.99,141.96,0.34]
[1720029061634,33.7524,142.0,141.96,0.34]
[1720029061837,33.7524,142.0,141.96,7.3841]
[1720029062025,7.0428,141.99,141.96,0.17]
[1720029062230,8.45241668,141.99,141.96,0.17]
[1720029063424,8.45281668,141.98,141.93,7.0455]
[1720029063736,8.45281668,141.98,141.94,0.34]
[1720029064141,1.40961668,141.98,141.94,17.953]
[1720029064322,1.40961668,141.98,141.95,7.0444]
[1720029065018,7.044,141.97,141.94,0.17]
[1720029065221,24.05681668,141.99,141.93,0.17]
[1720029065633,20.0,141.98,141.93,18.97646964]
[1720029065940,21.40961668,141.98,141.95,7.0447]
[1720029066443,20.0,141.98,141.96,7.0441]
[1720029067433,20.0,141.98,141.95,24.8262]
[1720029067740,20.0,141.98,141.96,0.17]
[1720029069136,22.647,141.99,141.96,0.17]
[1720029070231,7.0432,141.98,141.96,0.17]
[1720029071332,15.6042,141.99,141.96,0.17]
[1720029071533,1.40961668,142.01,141.98,7.0432]
[1720029071838,53.7522,142.01,141.97,17.6091]
[1720029072022,27.0422,142.01,141.98,0.34]
[1720029072843,7.0422,142.0,141.98,0.34]
[1720029074241,20.0,142.01,141.98,1.74825048]
[1720029074440,27.0421,142.01,141.98,0.34]
[1720029074939,7.0421,142.01,141.98,0.34]
[1720029075650,9.29975708,142.02,141.98,0.34]
[1720029075950,2.25845708,142.02,141.98,0.34]
[1720029076120,7.0436,141.98,141.94,17.612]
[1720029076324,44.3166,142.0,141.92,21.22]
[1720029076522,7.0446,141.96,141.91,24.6626]
[1720029076722,1.40961668,141.99,141.93,17.6141]
[1720029076948,7.0432,141.99,141.94,7.0448]
[1720029077253,20.0,141.98,141.94,7.0448]
[1720029077952,0.8488404,142.02,141.95,19.36024586]
[1720029077953,7.0422,142.01,141.95,19.36024586]
[1720029078129,2.25845708,142.02,141.96,7.0441]
[1720029078130,20.0,142.0,141.96,7.0441]
[1720029078329,7.0419,142.01,141.97,17.9489]
[1720029078523,27.0426,142.0,141.97,0.17]
[1720029079056,7.0428,141.99,141.96,0.17]
[1720029079837,13.37,141.97,141.96,0.17]
[1720029080063,7.0428,141.99,141.96,0.17]
[1720029080361,13.37,141.97,141.96,0.17]
[1720029082772,13.37,141.97,141.96,7.2142]
[1720029082971,13.37,141.97,141.96,7.3842]
[1720029084051,20.0,142.0,141.97,7.0434]
[1720029084259,13.37,141.98,141.97,7.0434]
[1720029084570,13.37,141.98,141.97,7.3834]
[1720029085541,0.8488404,142.02,141.98,7.0432]
[1720029085746,7.8904404,142.02,141.99,0.34]
[1720029085966,13.37,142.0,141.99,0.34]
[1720029087353,20.4122,142.0,141.96,7.044]
[1720029087551,13.37,141.97,141.96,7.044]
[1720029087747,13.37,141.97,141.96,7.384]
[1720029088349,13.37,141.97,141.92,17.6144]
[1720029088552,0.8488404,142.02,141.93,7.0457]
[1720029088553,13.37,141.94,141.93,7.0457]
[1720029088773,13.37,141.94,141.92,24.6604]
[1720029089090,13.37,141.94,141.93,7.0457]
[1720029089380,17.15431668,141.99,141.94,17.613]
[1720029089588,23.9485,142.04,141.96,7.0437]
[1720029089589,2.25845708,142.02,141.96,7.0437]
[1720029089781,13.37,141.97,141.96,24.6542]
[1720029090256,2.25845708,142.02,141.96,17.6105]
[1720029090457,13.37,141.97,141.96,24.6547]
[1720029090685,13.37,141.97,141.96,24.9947]
[1720029091988,8.45161668,142.01,141.96,24.9947]
[1720029092171,20.0,142.0,141.97,7.3836]
[1720029092379,13.37,141.98,141.97,7.3836]
[1720029093065,20.0,142.0,141.98,7.0428]
[1720029093365,9.29975708,142.02,141.99,0.17]
[1720029093691,13.37,142.0,141.99,0.17]
[1720029094005,27.0418,142.01,141.98,0.17]
[1720029094171,13.37,141.99,141.98,7.2131]
[1720029094372,13.37,141.99,141.98,7.3831]
[1720029095317,13.37,141.99,141.98,0.34]
[1720029096307,13.37,141.99,141.98,24.9913]
[1720029096510,20.0,142.01,141.98,24.9913]
[1720029096817,20.0,142.01,141.99,0.17]
[1720029097016,13.37,142.0,141.99,0.17]
[1720029097317,20.4122,142.0,141.99,0.17]
[1720029098715,27.0419,142.01,141.99,0.17]
[1720029098898,13.37,142.0,141.98,0.34]
[1720029099107,13.37,141.99,141.98,0.34]
[1720029099497,13.37,141.99,141.98,7.3832]
[1720029099703,0.8488404,142.02,141.98,21.56]
[1720029099896,13.37,142.01,141.99,24.649]
[1720029100104,13.37,142.01,142.0,0.34]
[1720029104024,20.4117,142.01,141.99,0.34]
[1720029104237,0.8488404,142.02,141.98,0.34]
[1720029104397,0.8488404,142.02,142.0,7.2121]
[1720029104599,0.8488404,142.02,142.01,7.2117]
[1720029104811,14.2188404,142.02,142.01,24.986]
[1720029105331,14.2188404,142.02,142.01,0.34]
[1720029106424,7.0424,142.0,141.96,24.6545]
[1720029106632,13.37,141.97,141.95,7.0442]
[1720029107230,13.37,141.97,141.96,7.0442]
[1720029107801,7.0424,142.0,141.96,7.0442]
[1720029107802,13.37,141.98,141.96,7.0442]
[1720029108229,8.45141668,142.01,141.97,7.0436]
[1720029108440,13.37,141.99,141.97,7.0436]
[1720029108733,13.37,141.99,141.98,7.0432]
[1720029109127,13.37,141.99,141.98,0.34]
[1720029109643,13.37,141.99,141.98,7.3832]
[1720029109845,7.0418,142.01,141.98,0.34]
[1720029110024,7.0418,142.01,141.99,0.34]
[1720029110227,7.8902404,142.02,141.99,0.34]
[1720029110651,20.0,142.01,141.99,0.34]
[1720029111032,20.0,142.01,141.99,7.3827]
[1720029111225,27.8901404,142.02,141.99,0.34]
[1720029113732,7.0418,142.01,141.99,0.34]
[1720029114944,0.8488404,142.02,142.01,28.2617]
[1720029115253,7.0379,142.09,142.05,7.0396]
[1720029115440,8.44711668,142.1,142.06,7.3792]
[1720029115641,7.0378,142.09,142.06,0.34]
[1720029115831,1.40961668,142.08,142.03,7.0403]
[1720029116030,1.40961668,142.08,142.04,0.34]
[1720029116251,1.40961668,142.1,142.04,0.34]
[1720029116546,7.0389,142.07,142.04,0.34]
[1720029117862,7.0392,142.06,142.04,0.34]
[1720029118045,7.0392,142.06,142.02,7.041]
[1720029118239,26.73,142.08,142.03,17.9408]
[1720029118438,7.0378,142.09,142.05,7.0394]
[1720029118751,33.7674,142.1,142.06,0.34]
[1720029119068,12.24782095,142.16,142.07,17.596]
[1720029119369,12.24782095,142.16,142.13,7.0357]
[1720029119370,0.8488404,142.16,142.13,7.0357]
[1720029119658,0.8488404,142.16,142.13,17.589]
[1720029119863,0.8488404,142.16,142.14,7.2052]
[1720029120027,0.8488404,142.16,142.14,0.17]
[1720029120233,28.98845708,142.16,142.1,17.5931]
[1720029120442,7.0352,142.15,142.11,7.0367]
[1720029120645,26.73,142.15,142.1,17.5931]
[1720029120853,0.8488404,142.16,142.12,17.7602]
[1720029121160,0.8488404,142.16,142.13,7.2056]
[1720029121366,0.8488404,142.16,142.13,0.17]
[1720029121657,27.5788404,142.16,142.13,0.17]
[1720029122158,20.0,142.15,142.13,0.17]
[1720029122933,1.40961668,142.14,142.09,17.5935]
[1720029123235,33.7659,142.13,142.09,7.0377]
[1720029123448,1.40961668,142.12,142.09,7.0377]
[1720029123653,35.17551668,142.13,142.09,7.0377]
[1720029123826,26.73,142.13,142.08,17.5952]
[1720029124027,26.73,142.13,142.09,7.0377]
[1720029124240,1.40961668,142.12,142.09,7.0377]
[1720029124557,8.44601668,142.12,142.08,24.6333]
[1720029125069,1.40961668,142.12,142.08,24.6333]
[1720029125362,8.44591668,142.12,142.08,24.6333]
[1720029125933,20.0,142.11,142.09,7.0377]
[1720029126134,8.44601668,142.12,142.08,17.5952]
[1720029126453,20.0,142.11,142.08,17.5952]
[1720029126645,21.40961668,142.12,142.08,17.5952]
[1720029126847,21.40961668,142.12,142.08,24.6333]
[1720029129358,20.0,142.12,142.08,24.6333]